[Event "Biel DQA Blitzn"]
[Site "Biel/Bienne, Switzerland"]
[Date "2022.07.17"]
[Round "8.3"]
[White "Ciarletta, Iris"]
[Black "Keymer, Cecilia"]
[Result "1/2-1/2"]
[TimeControl "3 min + 2 sec"]
[WhiteElo "1481"]
[BlackElo "1652"]

1. d4 {[%clk 00:03:02]} d5 {[%clk 00:03:04]} 2. c4 {[%clk 00:03:04]} c6 {[%clk
00:03:05]} 3. Nf3 {[%clk 00:03:03]} {[%emt 00:00:03]} Nf6 {[%clk 00:03:06]} 4.
Nc3 {[%clk 00:03:04]} {[%emt 00:00:01]} dxc4 {[%clk 00:03:07]} {[%emt
00:00:01]} 5. a4 {[%clk 00:03:04]} {[%emt 00:00:02]} Bf5 {[%clk 00:03:09]} 6.
e3 {[%clk 00:03:04]} {[%emt 00:00:01]} e6 {[%clk 00:03:10]} 7. Bxc4 {[%clk
00:03:04]} {[%emt 00:00:02]} Bb4 {[%clk 00:03:11]} 8. O-O {[%clk 00:03:05]}
{[%emt 00:00:02]} O-O {[%clk 00:03:12]} {[%emt 00:00:02]} 9. Qe2 {[%clk
00:03:05]} {[%emt 00:00:01]} Bg6 {[%clk 00:03:13]} 10. Bd2 {[%clk 00:02:48]}
{[%emt 00:00:20]} Nbd7 {[%clk 00:03:01]} {[%emt 00:00:13]} 11. Ne4 {[%clk
00:02:46]} {[%emt 00:00:05]} Nxe4 {[%clk 00:02:51]} {[%emt 00:00:12]} 12. Bxb4
{[%clk 00:02:46]} Re8 {[%clk 00:02:49]} {[%emt 00:00:03]} 13. Nd2 {[%clk
00:02:45]} {[%emt 00:00:04]} Ndf6 {[%clk 00:02:41]} {[%emt 00:00:10]} 14. Nxe4
{[%clk 00:02:45]} {[%emt 00:00:02]} Nxe4 {[%clk 00:02:38]} {[%emt 00:00:06]} 15.
Bd3 {[%clk 00:02:45]} {[%emt 00:00:02]} Nd6 {[%clk 00:02:26]} {[%emt 00:00:14]}
16. Bxg6 {[%clk 00:02:42]} {[%emt 00:00:04]} hxg6 {[%clk 00:02:27]} 17. Rac1
{[%clk 00:02:41]} {[%emt 00:00:04]} Nf5 {[%clk 00:02:13]} {[%emt 00:00:16]} 18.
Qc2 {[%clk 00:02:32]} {[%emt 00:00:11]} Qb6 {[%clk 00:02:08]} {[%emt 00:00:07]}
19. Qc5 {[%clk 00:02:24]} {[%emt 00:00:10]} Qxc5 {[%clk 00:01:58]} {[%emt
00:00:13]} 20. Bxc5 {[%clk 00:02:24]} {[%emt 00:00:01]} Red8 {[%clk 00:01:30]}
{[%emt 00:00:30]} 21. Rc2 {[%clk 00:02:21]} {[%emt 00:00:04]} f6 {[%clk
00:01:17]} {[%emt 00:00:15]} 22. Rc4 {[%clk 00:01:54]} {[%emt 00:00:29]} Kf7
{[%clk 00:01:14]} {[%emt 00:00:05]} 23. Rfc1 {[%clk 00:01:53]} {[%emt
00:00:03]} Nd6 {[%clk 00:01:08]} {[%emt 00:00:09]} 24. Bxd6 {[%clk 00:01:48]}
{[%emt 00:00:08]} Rxd6 {[%clk 00:01:09]} 25. Rb4 {[%clk 00:01:48]} Rd7 {[%clk
00:01:07]} {[%emt 00:00:04]} 26. Rc3 {[%clk 00:01:45]} {[%emt 00:00:05]} e5
{[%clk 00:00:44]} {[%emt 00:00:25]} 27. g3 {[%clk 00:01:38]} {[%emt 00:00:10]}
exd4 {[%clk 00:00:45]} 28. Rxd4 {[%clk 00:01:38]} {[%emt 00:00:02]} Rxd4 {[%clk
00:00:46]} 29. exd4 {[%clk 00:01:39]} Rd8 {[%clk 00:00:47]} 30. Rb3 {[%clk
00:01:40]} Rd7 {[%clk 00:00:48]} 31. Kf1 {[%clk 00:01:39]} {[%emt 00:00:03]}
Ke6 {[%clk 00:00:49]} 32. Ke2 {[%clk 00:01:37]} {[%emt 00:00:04]} Kd5 {[%clk
00:00:37]} {[%emt 00:00:14]} 33. Rb4 {[%clk 00:01:34]} {[%emt 00:00:04]} a5
{[%clk 00:00:28]} {[%emt 00:00:11]} 34. Rb3 {[%clk 00:01:33]} {[%emt 00:00:04]}
Kc4 {[%clk 00:00:26]} {[%emt 00:00:05]} 35. Re3 {[%clk 00:01:27]} {[%emt
00:00:08]} Kd5 {[%clk 00:00:21]} {[%emt 00:00:07]} 36. b3 {[%clk 00:01:18]}
{[%emt 00:00:11]} Rc7 {[%clk 00:00:21]} {[%emt 00:00:02]} 37. Rd3 {[%clk
00:01:17]} {[%emt 00:00:03]} Ke6 {[%clk 00:00:18]} {[%emt 00:00:05]} 38. Ke3
{[%clk 00:01:13]} {[%emt 00:00:05]} Rd7 {[%clk 00:00:17]} {[%emt 00:00:01]} 39.
f4 {[%clk 00:01:11]} {[%emt 00:00:04]} Kd5 {[%clk 00:00:18]} {[%emt 00:00:03]}
40. Rc3 {[%clk 00:01:05]} {[%emt 00:00:08]} Re7+ {[%clk 00:00:19]} {[%emt
00:00:01]} 41. Kd3 {[%clk 00:01:05]} {[%emt 00:00:01]} Kd6 {[%clk 00:00:15]}
{[%emt 00:00:06]} 42. Rc5 {[%clk 00:01:04]} {[%emt 00:00:03]} b6 {[%clk
00:00:16]} {[%emt 00:00:01]} 43. Rc2 {[%clk 00:01:05]} {[%emt 00:00:01]} Re1
{[%clk 00:00:15]} {[%emt 00:00:03]} 44. Rf2 {[%clk 00:01:02]} {[%emt 00:00:04]}
Rd1+ {[%clk 00:00:14]} {[%emt 00:00:03]} 45. Ke3 {[%clk 00:00:57]} {[%emt
00:00:08]} Kd5 {[%clk 00:00:11]} {[%emt 00:00:05]} 46. Rc2 {[%clk 00:00:55]}
{[%emt 00:00:04]} Rxd4 {[%clk 00:00:11]} {[%emt 00:00:02]} 47. Kf3 {[%clk
00:00:54]} {[%emt 00:00:02]} Rd1 {[%clk 00:00:11]} {[%emt 00:00:01]} 48. Ke3
{[%clk 00:00:55]} {[%emt 00:00:01]} Kd6 {[%clk 00:00:12]} {[%emt 00:00:01]} 49.
Ke2 {[%clk 00:00:55]} {[%emt 00:00:02]} Rd5 {[%clk 00:00:13]} {[%emt 00:00:02]}
50. Ke3 {[%clk 00:00:54]} {[%emt 00:00:02]} Rc5 {[%clk 00:00:13]} {[%emt
00:00:02]} 51. Rd2+ {[%clk 00:00:54]} {[%emt 00:00:02]} Rd5 {[%clk 00:00:15]}
52. Rc2 {[%clk 00:00:54]} {[%emt 00:00:03]} Kd7 {[%clk 00:00:12]} {[%emt
00:00:04]} 53. Kf3 {[%clk 00:00:53]} {[%emt 00:00:03]} Rd3+ {[%clk 00:00:13]}
{[%emt 00:00:01]} 54. Kg4 {[%clk 00:00:48]} {[%emt 00:00:07]} Rxb3 {[%clk
00:00:14]} {[%emt 00:00:01]} 55. Rd2+ {[%clk 00:00:47]} {[%emt 00:00:03]} Ke7
{[%clk 00:00:14]} {[%emt 00:00:02]} 56. Re2+ {[%clk 00:00:47]} {[%emt
00:00:03]} Kd7 {[%clk 00:00:15]} 57. Rd2+ {[%clk 00:00:48]} Ke7 {[%clk
00:00:14]} {[%emt 00:00:03]} 58. Re2+ {[%clk 00:00:49]} {[%emt 00:00:01]} Kf7
{[%clk 00:00:14]} {[%emt 00:00:02]} 59. Rc2 {[%clk 00:00:48]} {[%emt 00:00:04]}
c5 {[%clk 00:00:15]} {[%emt 00:00:01]} 60. Rd2 {[%clk 00:00:47]} {[%emt
00:00:02]} Ke7 {[%clk 00:00:15]} {[%emt 00:00:02]} 61. Re2+ {[%clk 00:00:48]}
{[%emt 00:00:01]} Kd6 {[%clk 00:00:15]} {[%emt 00:00:02]} 62. Rd2+ {[%clk
00:00:47]} {[%emt 00:00:04]} Kc6 {[%clk 00:00:14]} {[%emt 00:00:02]} 63. Rd8
{[%clk 00:00:43]} {[%emt 00:00:08]} Rb4 {[%clk 00:00:09]} {[%emt 00:00:07]} 64.
Rc8+ {[%clk 00:00:43]} {[%emt 00:00:02]} Kd7 {[%clk 00:00:09]} {[%emt
00:00:02]} 65. Rb8 {[%clk 00:00:42]} {[%emt 00:00:03]} c4 {[%clk 00:00:09]}
{[%emt 00:00:02]} 66. Rg8 {[%clk 00:00:42]} {[%emt 00:00:02]} c3 {[%clk
00:00:08]} {[%emt 00:00:03]} 67. Rxg7+ {[%clk 00:00:43]} {[%emt 00:00:01]} Ke6
{[%clk 00:00:08]} {[%emt 00:00:02]} 68. Rc7 {[%clk 00:00:44]} {[%emt 00:00:01]}
Rb3 {[%clk 00:00:07]} {[%emt 00:00:03]} 69. h4 {[%clk 00:00:43]} {[%emt
00:00:03]} b5 {[%clk 00:00:05]} {[%emt 00:00:04]} 70. axb5 {[%clk 00:00:44]}
{[%emt 00:00:01]} a4 {[%clk 00:00:07]} 71. b6 {[%clk 00:00:45]} {[%emt
00:00:02]} Rxb6 {[%clk 00:00:06]} {[%emt 00:00:03]} 72. Rxc3 {[%clk 00:00:46]}
Ra6 {[%clk 00:00:06]} {[%emt 00:00:02]} 73. Ra3 {[%clk 00:00:45]} {[%emt
00:00:01]} Kd5 {[%clk 00:00:07]} {[%emt 00:00:02]} 74. h5 {[%clk 00:00:45]}
{[%emt 00:00:03]} gxh5+ {[%clk 00:00:06]} {[%emt 00:00:03]} 75. Kxh5 {[%clk
00:00:46]} {[%emt 00:00:01]} Kc4 {[%clk 00:00:07]} 76. Kg6 {[%clk 00:00:46]}
{[%emt 00:00:02]} Kb4 {[%clk 00:00:08]} {[%emt 00:00:01]} 77. Ra1 {[%clk
00:00:46]} {[%emt 00:00:01]} a3 {[%clk 00:00:10]} {[%emt 00:00:01]} 78. g4
{[%clk 00:00:45]} {[%emt 00:00:03]} Kb3 {[%clk 00:00:10]} {[%emt 00:00:01]} 79.
Rh1 {[%clk 00:00:45]} {[%emt 00:00:02]} a2 {[%clk 00:00:11]} {[%emt 00:00:01]}
80. Rh3+ {[%clk 00:00:46]} {[%emt 00:00:01]} Kb2 {[%clk 00:00:11]} {[%emt
00:00:02]} 81. Rh2+ {[%clk 00:00:48]} Kb3 {[%clk 00:00:11]} {[%emt 00:00:02]}
82. Rh3+ {[%clk 00:00:48]} {[%emt 00:00:02]} Kb2 {[%clk 00:00:12]} 83. Rh2+
{[%clk 00:00:49]} Kb3 {[%emt 00:00:02]} 84. Rh3+ {[%clk 00:00:50]} Kb2 {[%clk
00:00:14]} {[%emt 00:00:01]} 85. Rh2+ {[%clk 00:00:51]} 1/2-1/2

[Event "Biel DQA Blitzn"]
[Site "Biel/Bienne, Switzerland"]
[Date "2022.07.17"]
[Round "8.4"]
[White "Moracchini, Margaux"]
[Black "Sumarriva Paulin, Laura"]
[Result "1-0"]
[TimeControl "3 min + 2 sec"]
[WhiteElo "1825"]
[BlackElo "1886"]

1. e4 {[%clk 00:03:03]} {[%emt 00:09:29]} e6 {[%clk 00:03:03]} {[%emt
00:00:02]} 2. d4 {[%clk 00:03:02]} {[%emt 00:00:03]} d5 {[%clk 00:03:03]}
{[%emt 00:00:01]} 3. Nd2 {[%clk 00:03:03]} {[%emt 00:00:01]} c5 {[%clk
00:03:04]} {[%emt 00:00:02]} 4. exd5 {[%clk 00:03:01]} {[%emt 00:00:04]} exd5
{[%clk 00:03:04]} {[%emt 00:00:01]} 5. Bb5+ {[%clk 00:03:02]} {[%emt 00:00:01]}
Nc6 {[%clk 00:03:05]} {[%emt 00:00:01]} 6. Ngf3 {[%clk 00:02:54]} {[%emt
00:00:09]} Qe7+ {[%clk 00:03:05]} {[%emt 00:00:02]} 7. Be2 {[%clk 00:02:52]}
{[%emt 00:00:04]} Qc7 {[%clk 00:03:05]} {[%emt 00:00:02]} 8. O-O {[%clk
00:02:45]} {[%emt 00:00:09]} Nf6 {[%clk 00:03:03]} {[%emt 00:00:04]} 9. Re1
{[%clk 00:02:08]} {[%emt 00:00:40]} Be7 {[%clk 00:03:02]} {[%emt 00:00:03]} 10.
dxc5 {[%clk 00:01:52]} {[%emt 00:00:18]} Bxc5 {[%clk 00:03:00]} {[%emt
00:00:04]} 11. Nb3 {[%clk 00:01:45]} {[%emt 00:00:09]} Be7 {[%clk 00:02:58]}
{[%emt 00:00:04]} 12. Bb5 {[%clk 00:01:42]} {[%emt 00:00:05]} O-O {[%clk
00:02:50]} {[%emt 00:00:09]} 13. Bg5 {[%clk 00:01:34]} {[%emt 00:00:10]} a6
{[%clk 00:02:45]} {[%emt 00:00:08]} 14. Bxc6 {[%clk 00:01:34]} {[%emt
00:00:02]} bxc6 {[%clk 00:02:45]} {[%emt 00:00:02]} 15. Nbd4 {[%clk 00:01:28]}
{[%emt 00:00:08]} c5 {[%clk 00:02:20]} {[%emt 00:00:28]} 16. Nc6 {[%clk
00:01:17]} {[%emt 00:00:11]} Qxc6 {[%clk 00:02:10]} {[%emt 00:00:13]} 17. Rxe7
{[%clk 00:01:18]} {[%emt 00:00:01]} Ne4 {[%clk 00:01:57]} {[%emt 00:00:15]} 18.
Bf4 {[%clk 00:01:14]} {[%emt 00:00:06]} Bg4 {[%clk 00:01:47]} {[%emt 00:00:12]}
19. Rc7 {[%clk 00:01:13]} {[%emt 00:00:03]} Qf6 {[%clk 00:01:35]} {[%emt
00:00:14]} 20. Be5 {[%clk 00:01:02]} {[%emt 00:00:14]} Qf5 {[%clk 00:01:15]}
{[%emt 00:00:22]} 21. Bg3 {[%clk 00:00:52]} {[%emt 00:00:11]} Ng5 {[%clk
00:00:59]} {[%emt 00:00:18]} 22. Nh4 {[%clk 00:00:33]} {[%emt 00:00:22]} Bxd1
{[%clk 00:00:51]} {[%emt 00:00:10]} 23. Nxf5 {[%clk 00:00:34]} Bxc2 {[%clk
00:00:50]} {[%emt 00:00:03]} 24. Ne7+ {[%clk 00:00:34]} {[%emt 00:00:01]} Kh8
{[%clk 00:00:51]} {[%emt 00:00:02]} 25. Rxc5 {[%clk 00:00:35]} {[%emt
00:00:01]} Be4 {[%clk 00:00:42]} {[%emt 00:00:10]} 26. Nxd5 {[%clk 00:00:35]}
{[%emt 00:00:02]} Ne6 {[%clk 00:00:39]} {[%emt 00:00:05]} 27. Ra5 {[%clk
00:00:33]} {[%emt 00:00:04]} Rad8 {[%clk 00:00:27]} {[%emt 00:00:14]} 28. Ne3
{[%clk 00:00:34]} {[%emt 00:00:01]} Rd2 {[%clk 00:00:21]} {[%emt 00:00:08]} 29.
b3 {[%clk 00:00:31]} {[%emt 00:00:05]} Bd3 {[%clk 00:00:18]} {[%emt 00:00:04]}
30. h3 {[%clk 00:00:26]} {[%emt 00:00:07]} h6 {[%clk 00:00:20]} {[%emt
00:00:02]} 31. Rd5 {[%clk 00:00:27]} {[%emt 00:00:01]} Nc7 {[%clk 00:00:08]}
{[%emt 00:00:14]} 32. Bxc7 {[%clk 00:00:27]} {[%emt 00:00:02]} Rc8 {[%clk
00:00:08]} {[%emt 00:00:02]} 33. Rd8+ {[%clk 00:00:26]} Rxd8 {[%clk 00:00:09]}
{[%emt 00:00:02]} 34. Bxd8 {[%clk 00:00:29]} Be4 {[%clk 00:00:10]} {[%emt
00:00:01]} 35. Bh4 {[%clk 00:00:28]} {[%emt 00:00:03]} Rd7 {[%clk 00:00:10]}
{[%emt 00:00:02]} 36. Rc1 {[%clk 00:00:27]} {[%emt 00:00:02]} Kh7 {[%clk
00:00:10]} {[%emt 00:00:02]} 37. Rd1 {[%clk 00:00:24]} {[%emt 00:00:05]} Rc7
{[%clk 00:00:10]} {[%emt 00:00:02]} 38. Bg3 {[%clk 00:00:21]} {[%emt 00:00:04]}
Rc6 {[%clk 00:00:11]} {[%emt 00:00:02]} 39. Rd4 {[%clk 00:00:18]} {[%emt
00:00:04]} Bg6 {[%clk 00:00:11]} {[%emt 00:00:02]} 40. Kh2 {[%clk 00:00:17]}
{[%emt 00:00:03]} Rc3 {[%clk 00:00:11]} {[%emt 00:00:02]} 41. Rd6 {[%clk
00:00:16]} {[%emt 00:00:03]} Bd3 {[%clk 00:00:09]} {[%emt 00:00:04]} 42. Nd5
{[%clk 00:00:14]} {[%emt 00:00:03]} Rc2 {[%clk 00:00:10]} {[%emt 00:00:02]} 43.
Nb4 {[%clk 00:00:16]} {[%emt 00:00:01]} Rd2 {[%clk 00:00:09]} {[%emt 00:00:03]}
44. Rxd3 {[%clk 00:00:16]} {[%emt 00:00:01]} Rxd3 {[%clk 00:00:09]} {[%emt
00:00:02]} 45. Nxd3 {[%clk 00:00:17]} Kg6 {[%clk 00:00:10]} 46. Nc5 {[%clk
00:00:18]} a5 {[%clk 00:00:11]} 47. Nb7 {[%emt 00:00:06]} 1-0

[ePGN "0.1;DGT LiveChess/2.2.5"]

[Event "Biel DQA Blitzn"]
[Site "Biel/Bienne, Switzerland"]
[Date "2022.07.17"]
[Round "9.1"]
[White "Moracchini, Margaux"]
[Black "Cornileau, Juliette"]
[Result "0-1"]
[TimeControl "3 min + 2 sec"]
[WhiteElo "1825"]
[BlackElo "1653"]

1. e4 {[%clk 00:03:03]} {[%emt 00:00:01]} c6 {[%clk 00:03:02]} {[%emt
00:00:03]} 2. d4 {[%clk 00:03:01]} {[%emt 00:00:03]} d5 {[%clk 00:03:02]}
{[%emt 00:00:02]} 3. Nd2 {[%clk 00:03:02]} dxe4 {[%clk 00:03:03]} {[%emt
00:00:01]} 4. Nxe4 {[%clk 00:03:04]} Bf5 {[%clk 00:03:04]} 5. Ng3 {[%clk
00:03:05]} {[%emt 00:00:01]} Bg6 {[%clk 00:03:05]} 6. h4 {[%clk 00:03:06]} h6
{[%clk 00:03:06]} {[%emt 00:00:02]} 7. h5 {[%clk 00:03:07]} {[%emt 00:00:01]}
Bh7 {[%clk 00:03:08]} 8. Nf3 {[%clk 00:03:07]} {[%emt 00:00:02]} e6 {[%clk
00:03:08]} {[%emt 00:00:02]} 9. Bd3 {[%clk 00:03:08]} {[%emt 00:00:01]} Bxd3
{[%clk 00:03:09]} {[%emt 00:00:02]} 10. Qxd3 {[%clk 00:03:09]} Nf6 {[%clk
00:03:10]} {[%emt 00:00:01]} 11. Bd2 {[%clk 00:02:46]} {[%emt 00:00:25]} Bd6
{[%clk 00:03:07]} {[%emt 00:00:04]} 12. Ne2 {[%clk 00:02:36]} {[%emt 00:00:12]}
Qc7 {[%clk 00:02:34]} {[%emt 00:00:35]} 13. g3 {[%clk 00:02:35]} {[%emt
00:00:03]} Nbd7 {[%clk 00:02:26]} {[%emt 00:00:10]} 14. O-O-O {[%clk 00:02:33]}
{[%emt 00:00:04]} O-O-O {[%clk 00:02:02]} {[%emt 00:00:26]} 15. Bf4 {[%clk
00:02:33]} {[%emt 00:00:02]} Nb6 {[%clk 00:01:58]} {[%emt 00:00:06]} 16. c4
{[%clk 00:01:52]} {[%emt 00:00:43]} Bxf4+ {[%clk 00:01:58]} {[%emt 00:00:01]}
17. Nxf4 {[%clk 00:01:52]} {[%emt 00:00:01]} c5 {[%clk 00:01:53]} {[%emt
00:00:07]} 18. Ne2 {[%clk 00:01:38]} {[%emt 00:00:17]} cxd4 {[%clk 00:01:52]}
{[%emt 00:00:03]} 19. Nfxd4 {[%clk 00:01:23]} {[%emt 00:00:17]} e5 {[%clk
00:01:46]} {[%emt 00:00:08]} 20. Qf5+ {[%clk 00:01:24]} Kb8 {[%clk 00:01:43]}
{[%emt 00:00:06]} 21. Nc2 {[%clk 00:01:15]} {[%emt 00:00:11]} Nxc4 {[%clk
00:01:11]} {[%emt 00:00:34]} 22. Nc3 {[%clk 00:01:17]} Qb6 {[%clk 00:01:00]}
{[%emt 00:00:12]} 23. b3 {[%clk 00:01:13]} {[%emt 00:00:06]} Qa5 {[%clk
00:00:48]} {[%emt 00:00:14]} 24. Na4 {[%clk 00:00:57]} {[%emt 00:00:18]} Nb6
{[%clk 00:00:40]} {[%emt 00:00:09]} 25. Nxb6 {[%clk 00:00:47]} {[%emt
00:00:12]} axb6 {[%clk 00:00:41]} {[%emt 00:00:01]} 26. Kb1 {[%clk 00:00:35]}
{[%emt 00:00:15]} Ka7 {[%clk 00:00:28]} {[%emt 00:00:15]} 27. Rhe1 {[%clk
00:00:35]} {[%emt 00:00:02]} Nd5 {[%clk 00:00:28]} {[%emt 00:00:02]} 28. Rxe5
{[%clk 00:00:13]} {[%emt 00:00:24]} Nc3+ {[%clk 00:00:28]} {[%emt 00:00:02]} 29.
Kb2 {[%clk 00:00:15]} Nxd1+ {[%clk 00:00:29]} {[%emt 00:00:01]} 30. Kc1 {[%clk
00:00:16]} {[%emt 00:00:01]} Qd2+ {[%clk 00:00:28]} {[%emt 00:00:01]} 31. Kb1
{[%clk 00:00:16]} {[%emt 00:00:46]} Qc3 {[%clk 00:01:23]} {[%emt 00:00:05]} 0-1

[Event "Biel DQA Blitzn"]
[Site "Biel/Bienne, Switzerland"]
[Date "2022.07.17"]
[Round "9.2"]
[White "Sumarriva Paulin, Laura"]
[Black "Ciarletta, Iris"]
[Result "0-1"]
[TimeControl "3 min + 2 sec"]
[WhiteElo "1886"]
[BlackElo "1481"]

1. d4 {[%clk 00:03:02]} {[%emt 00:00:02]} Nf6 {[%clk 00:03:03]} {[%emt
00:00:01]} 2. c4 {[%clk 00:03:03]} c5 {[%clk 00:03:04]} {[%emt 00:00:02]} 3. d5
{[%clk 00:03:03]} {[%emt 00:00:01]} b5 {[%clk 00:03:05]} {[%emt 00:00:01]} 4.
cxb5 {[%clk 00:03:04]} a6 {[%clk 00:03:06]} {[%emt 00:00:01]} 5. bxa6 {[%clk
00:03:05]} Bxa6 {[%clk 00:03:08]} {[%emt 00:00:01]} 6. Nc3 {[%clk 00:03:05]}
{[%emt 00:00:01]} d6 {[%clk 00:03:09]} 7. e4 {[%clk 00:03:06]} Bxf1 {[%clk
00:03:10]} {[%emt 00:00:01]} 8. Kxf1 {[%clk 00:03:07]} g6 {[%clk 00:03:11]}
{[%emt 00:00:01]} 9. Nf3 {[%clk 00:03:05]} {[%emt 00:00:03]} Bg7 {[%clk
00:03:12]} 10. g3 {[%clk 00:03:06]} {[%emt 00:00:02]} O-O {[%clk 00:03:13]}
{[%emt 00:00:01]} 11. Kg2 {[%clk 00:03:07]} Nbd7 {[%clk 00:03:13]} {[%emt
00:00:02]} 12. a4 {[%clk 00:03:08]} Nb6 {[%clk 00:03:13]} {[%emt 00:00:02]} 13.
Qc2 {[%clk 00:03:03]} {[%emt 00:00:06]} Nfd7 {[%clk 00:03:14]} {[%emt
00:00:02]} 14. Bd2 {[%clk 00:02:59]} {[%emt 00:00:05]} Nc4 {[%clk 00:03:12]}
{[%emt 00:00:04]} 15. b3 {[%clk 00:02:51]} {[%emt 00:00:10]} Nxd2 {[%clk
00:03:12]} {[%emt 00:00:03]} 16. Qxd2 {[%clk 00:02:52]} {[%emt 00:00:01]} Qb8
{[%clk 00:03:12]} {[%emt 00:00:01]} 17. Rab1 {[%clk 00:02:51]} {[%emt
00:00:03]} Ne5 {[%clk 00:03:07]} {[%emt 00:00:07]} 18. Nxe5 {[%clk 00:02:50]}
{[%emt 00:00:03]} Bxe5 {[%clk 00:03:07]} {[%emt 00:00:02]} 19. Nb5 {[%clk
00:02:50]} {[%emt 00:00:02]} Qb7 {[%clk 00:03:05]} {[%emt 00:00:04]} 20. h4
{[%clk 00:02:38]} {[%emt 00:00:13]} h5 {[%clk 00:02:44]} {[%emt 00:00:24]} 21.
g4 {[%clk 00:02:17]} {[%emt 00:00:23]} Qd7 {[%clk 00:02:45]} {[%emt 00:00:01]}
22. Qe2 {[%clk 00:02:11]} {[%emt 00:00:08]} Qxg4+ {[%clk 00:02:45]} {[%emt
00:00:02]} 23. Qxg4 {[%clk 00:02:11]} {[%emt 00:00:01]} hxg4 {[%clk 00:02:45]}
{[%emt 00:00:01]} 24. h5 {[%clk 00:02:09]} {[%emt 00:00:04]} g5 {[%clk
00:02:45]} {[%emt 00:00:02]} 25. h6 {[%clk 00:01:53]} {[%emt 00:00:18]} f5
{[%clk 00:02:43]} {[%emt 00:00:04]} 26. exf5 {[%clk 00:01:46]} {[%emt
00:00:09]} Rxf5 {[%clk 00:02:44]} {[%emt 00:00:01]} 27. Nc7 {[%clk 00:01:45]}
{[%emt 00:00:03]} Raf8 {[%clk 00:02:37]} {[%emt 00:00:09]} 28. Rbf1 {[%clk
00:01:43]} {[%emt 00:00:04]} Bd4 {[%clk 00:02:35]} {[%emt 00:00:04]} 29. Kg3
{[%clk 00:01:28]} {[%emt 00:00:16]} Rxf2 {[%clk 00:02:10]} {[%emt 00:00:27]} 30.
Rxf2 {[%clk 00:01:24]} {[%emt 00:00:06]} Rxf2 {[%clk 00:02:03]} {[%emt
00:00:10]} 31. Kxg4 {[%clk 00:01:23]} {[%emt 00:00:03]} Kh7 {[%clk 00:01:56]}
{[%emt 00:00:08]} 32. Ne6 {[%clk 00:01:23]} {[%emt 00:00:03]} Be3 {[%clk
00:01:53]} {[%emt 00:00:05]} 33. Nxg5+ {[%clk 00:01:11]} {[%emt 00:00:14]} Bxg5
{[%clk 00:01:52]} {[%emt 00:00:03]} 34. Kxg5 {[%clk 00:01:11]} {[%emt
00:00:01]} Rg2+ {[%clk 00:01:43]} {[%emt 00:00:11]} 35. Kf5 {[%clk 00:01:10]}
{[%emt 00:00:03]} Re2 {[%clk 00:01:40]} {[%emt 00:00:05]} 36. Rg1 {[%clk
00:00:58]} {[%emt 00:00:15]} Kxh6 {[%clk 00:01:39]} {[%emt 00:00:04]} 37. Rg6+
{[%clk 00:00:59]} {[%emt 00:00:01]} Kh5 {[%clk 00:01:39]} {[%emt 00:00:02]} 38.
Re6 {[%clk 00:00:58]} {[%emt 00:00:02]} Rf2+ {[%clk 00:01:37]} {[%emt
00:00:05]} 39. Ke4 {[%clk 00:00:58]} {[%emt 00:00:02]} Rb2 {[%clk 00:01:28]}
{[%emt 00:00:10]} 40. Rxe7 {[%clk 00:00:49]} {[%emt 00:00:11]} Re2+ {[%clk
00:01:29]} {[%emt 00:00:01]} 41. Kf5 {[%clk 00:00:44]} {[%emt 00:00:07]} Rxe7
{[%clk 00:01:30]} {[%emt 00:00:01]} 42. Kf6 {[%clk 00:00:44]} {[%emt 00:00:02]}
Re5 {[%clk 00:01:28]} {[%emt 00:00:04]} 43. a5 {[%clk 00:00:45]} {[%emt
00:00:01]} Rxd5 {[%clk 00:01:25]} {[%emt 00:00:06]} 44. a6 {[%clk 00:00:42]}
{[%emt 00:00:05]} Rd1 {[%clk 00:01:25]} {[%emt 00:00:01]} 45. Ke6 {[%clk
00:00:41]} {[%emt 00:00:03]} Ra1 {[%clk 00:01:26]} {[%emt 00:00:01]} 46. a7
{[%clk 00:00:39]} {[%emt 00:00:04]} Rxa7 {[%clk 00:01:27]} {[%emt 00:00:02]} 47.
Kxd6 {[%clk 00:00:39]} {[%emt 00:00:01]} Rb7 {[%clk 00:01:28]} {[%emt
00:00:01]} 0-1